Cogmind - Beta 13 @@@ ROGUE MODE // 2024.06.11 @ 18:25:05 Player: .fresh Result: Destroyed by D-53 Grenadier with Mini Grenade Launcher Performance ------------- Evolutions (0) 0 Regions Visited (2) 400 Robots Destroyed (20) 100 Value Destroyed (519) 519 Prototype IDs (3) 60 Alien Tech Used (0) 0 Bonus (0) 0 TOTAL SCORE: 1079 Bonus ------- None Cogmind --------- Core Integrity 0/250 Matter 300/300 Energy 100/100 System Corruption 0% Temperature Warm (147) Movement Core (1450) Ox28 Location -10/Mines Parts ------- > --- POWER (1) -------- (None) > --- PROPULSION (2) --- (None) > --- UTILITY (2) ------ Huge Storage Unit > --- WEAPON (2) ------- Beam Cannon Beam Cannon > --- INVENTORY (25) --- Ion Engine Light Treads Light Treads Light Treads Aluminum Leg Aluminum Leg Aluminum Leg Aluminum Leg Aluminum Leg Medium Storage Unit Structural Scanner Sensor Array Hacking Suite Small Laser Small Laser Light Assault Rifle Light Assault Rifle Light Assault Rifle Light Assault Rifle Datajack Mining Laser Mining Claw Peak State ------------ > --- POWER ------------ Ion Engine > --- PROPULSION ------- Light Treads Compact Wheel > --- UTILITY ---------- Improved Heat Sink Huge Storage Unit > --- WEAPON ----------- Beam Cannon Beam Cannon > --- INVENTORY -------- Ion Engine Light Treads Light Treads Light Treads Aluminum Leg Aluminum Leg Aluminum Leg Aluminum Leg Medium Storage Unit Structural Scanner Sensor Array Hacking Suite Small Laser Small Laser Light Assault Rifle Light Assault Rifle Light Assault Rifle Light Assault Rifle [Rating: 11] Favorites ----------- Power Ion Engine Engine Ion Engine Propulsion Light Treads Treads Light Treads Leg Aluminum Leg Wheel Compact Wheel Utility Huge Storage Unit Device Improved Heat Sink Storage Huge Storage Unit Weapon Beam Cannon Energy Gun Small Laser Energy Cannon Beam Cannon Ballistic Gun Light Assault Rifle Build | -11 -10 -10 ------- Run | Yrd Mat Min Slots Evolved . | . . . Power . | . . . Propulsion . | . . . Utility . | . . . Weapon . | . . . Parts Attached 12 | 2 10 . Power 2 | . 2 . Engine 2 | . 2 . Core . | . . . Reactor . | . . . Propulsion 3 | 2 1 . Treads 1 | 1 . . Leg . | . . . Wheel 2 | 1 1 . Hover . | . . . Flight . | . . . Utility 4 | . 4 . Device 2 | . 2 . Storage 2 | . 2 . Processor . | . . . Hackware . | . . . Protection . | . . . Artifact . | . . . Weapon 3 | . 3 . Energy Gun . | . . . Energy Cannon 2 | . 2 . Ballistic Gun 1 | . 1 . Ballistic Cannon . | . . . Launcher . | . . . Special Weapon . | . . . Impact Weapon . | . . . Slashing Weapon . | . . . Piercing Weapon . | . . . Special Melee Weapon . | . . . Unidentified Prototypes . | . . . Parts Lost 7 | . 3 4 Power 3 | . 2 1 Propulsion 3 | . 1 2 Utility 1 | . . 1 Weapon . | . . . Highest Loss Streak 4 | . 1 4 To Critical Strikes . | . . . Average Slot Usage (%) 99 | . 99 100 Engine 13 | . 13 14 Treads 14 | . 14 14 Wheel 14 | . 14 14 Device 13 | . 13 14 Storage 14 | . 14 14 Energy Cannon 16 | . 13 28 Ballistic Gun 10 | . 14 . Naked Turns . | . . . Heaviest Build 92 | 12 92 92 Greatest Support 16 | 10 16 16 Greatest Overweight (x) 8 | 1 8 5 Average Overweight (x) 4 | 1 5 5 Largest Inventory Capacity 25 | 8 25 25 Average Capacity 24 | 8 24 25 Most Carried 22 | 6 20 22 Average Carried 15 | 6 13 21 Final Capacity 25 | 8 25 25 Final Carried 22 | 6 20 22 Class Distribution -------------------- 100% | Mutant Dominant Class ---------------- Mutant | -10/Materials Mutant | -10/Mines Resources | -11 -10 -10 ----------- Run | Yrd Mat Min Matter Collected 400 | 220 180 . Remotely . | . . . Salvage Created 713 | . 713 . Parts 54 | . 54 . Haulers Intercepted 2 | . 2 . Recyclers Shooed 1 | . 1 . Parts Field Recycled . | . . . Retrieved Matter . | . . . Parts Self-Destructed . | . . . Prevented . | . . . Kills | -11 -10 -10 ------- Run | Yrd Mat Min Combat Hostiles Destroyed 14 | . 14 . Guns 9 | . 9 . Cannons 5 | . 5 . Classes Destroyed 7 | . 7 . Worker 1 | . 1 . Builder 1 | . 1 . Hauler 2 | . 2 . Operator 1 | . 1 . Watcher 1 | . 1 . Swarmer 2 | . 2 . Grunt 12 | . 12 . Best Kill Streak 4 | . 4 . Combat Bots Only 3 | . 3 . Max Kills in Single Turn 1 | . 1 . Gunslinging . | . . . Exploded . | . . . Melee . | . . . Uniques/NPCs Destroyed . | . . . Combat | -11 -10 -10 -------- Run | Yrd Mat Min Hostile Shots Fired 89 | . 80 9 Missed 27 | . 27 . Damage Taken 957 | . 584 373 Core 252 | . 129 123 Absorbed by Shields . | . . . Core Remaining (%) 100 | 100 . . Volleys Fired 60 | . 57 3 Largest 2 | . 2 2 Hottest 120 | . 120 120 Shots Fired 120 | . 114 6 Gun 90 | . 90 . Cannon 30 | . 24 6 Launcher . | . . . Special . | . . . Kinetic 90 | . 90 . Thermal 30 | . 24 6 Explosive . | . . . Electromagnetic . | . . . Robot Hit Streak 18 | . 18 2 Robot Miss Streak 3 | . 3 2 Penetration Max . | . . . Secondary Targets 2 | . 2 . Max Gunslinging Chain 1 | . 1 . Shots Hit Robots 86 | . 83 3 Core Hits 38 | . 38 . Critical Kills . | . . . Critical Parts Destroyed 3 | . 3 . Critical Strikes 3 | . 3 . Destroy 3 | . 3 . Melee Attacks . | . . . Impact . | . . . Slashing . | . . . Piercing . | . . . Sneak Attacks . | . . . Combat Hostiles . | . . . Follow-up Attacks . | . . . Damage Inflicted 1050 | . 874 176 Guns 507 | . 507 . Cannons 421 | . 367 54 Explosions 122 | . . 122 Melee . | . . . Ramming . | . . . Kinetic 507 | . 507 . Thermal 543 | . 367 176 Explosive . | . . . Electromagnetic . | . . . Impact . | . . . Slashing . | . . . Piercing . | . . . Highest Corruption . | . . . Average Corruption . | . . . Corruption Purged . | . . . Corruption Blocked . | . . . Overload Shots . | . . . Overflow Damage 19 | . 5 14 Projectiles 5 | . 5 . Explosions 14 | . . 14 Melee . | . . . Knockbacks . | . . . Impact . | . . . Kinetic . | . . . Secondary . | . . . Self-Inflicted Damage 40 | . . 40 Shots 1 | . . 1 Rammed . | . . . Targets Rammed . | . . . Kicked . | . . . Crushed . | . . . Highest Temperature 147 | . 96 147 Average Temperature 28 | . 22 91 Received Heat Transfer 288 | . 288 . Siege Activations . | . . . Robots Corrupted . | . . . Combat Hostiles . | . . . Parts Fried . | . . . Impact Corruptions . | . . . Robots Melted . | . . . Combat Hostiles . | . . . Parts Melted 2 | . 2 . Heat Transferred 1038 | . 777 261 Parts Sabotaged . | . . . Parts Stolen . | . . . Parts Stripped . | . . . Power Chain Reactions . | . . . Alert | -11 -10 -10 ------- Run | Yrd Mat Min Peak Influence 171 | . 171 22 Initial 22 | . . 22 Average 73 | . 91 20 Maximum Alert Level . | . . . Low Security (%) 100 | 100 100 100 Level 1 . | . . . Level 2 . | . . . Level 3 . | . . . Level 4 . | . . . Level 5 . | . . . High Security . | . . . Max Security . | . . . Squads Dispatched 4 | . 4 . Investigation 2 | . 2 . Extermination . | . . . Reinforcement 2 | . 2 . Assault . | . . . Garrison . | . . . Intercept . | . . . Searches Triggered . | . . . Construction Impeded . | . . . Haulers Reinforced . | . . . Active Scanning Responses . | . . . Cargo Convoy Interrupts . | . . . Stealth | -11 -10 -10 --------- Run | Yrd Mat Min Distress Signals 2 | . 2 . Communications Jammed . | . . . Distress Signals . | . . . Times Spotted 24 | . 22 2 Peak Tracking Total 4 | . 4 2 Tactical Retreats . | . . . Traps | -11 -10 -10 ------- Run | Yrd Mat Min Traps Triggered 1 | . 1 . Indirectly . | . . . Trap Hack Attempts . | . . . Triggered . | . . . Disarmed . | . . . Reprogrammed . | . . . Reused . | . . . Traps Extracted . | . . . Installed . | . . . Triggered . | . . . Machines | -11 -10 -10 ---------- Run | Yrd Mat Min Machines Disabled 1 | . . 1 Max in Single Turn 1 | . . 1 Machines Repaired . | . . . Machines Dismantled . | . . . Machines Sabotaged . | . . . Overloaded Fab Kills . | . . . Hacking | -11 -10 -10 --------- Run | Yrd Mat Min Machines Accessed 7 | . 7 . Terminals 6 | . 6 . Fabricators . | . . . Repair Stations . | . . . Recycling Units 1 | . 1 . Scanalyzers . | . . . Garrison Access . | . . . Total Hacks 23 | . 23 . Successful 12 | . 12 . Failed 11 | . 11 . Catastrophic . | . . . Database Lockouts . | . . . Manual 16 | . 16 . Terminals 20 | . 20 . Fabricators . | . . . Repair Stations . | . . . Recycling Units 3 | . 3 . Scanalyzers . | . . . Garrison Access . | . . . Terminal Hacks 6 | . 6 . Part Schematic 2 | . 2 . Robot Analysis 2 | . 2 . Prototype ID Bank 2 | . 2 . Fabricator Hacks . | . . . Repair Station Hacks . | . . . Recycling Unit Hacks 1 | . 1 . Retrieve Components 1 | . 1 . Scanalyzer . | . . . Garrison Access Hacks . | . . . Unauthorized Hacks 5 | . 5 . Terminals 4 | . 4 . Botnet 3 | . 3 . Operators 1 | . 1 . Fabricators . | . . . Repair Stations . | . . . Recycling Units 1 | . 1 . Tunnel 1 | . 1 . Scanalyzers . | . . . Garrison Access . | . . . Data Cores Recovered . | . . . Used . | . . . Hacking Detections 6 | . 6 . Full Trace Events . | . . . Feedback Events . | . . . Feedback Blocked . | . . . Robot Schematics Acquired . | . . . Robots Built . | . . . Authchips . | . . . Time . | . . . Total Robot Build Rating . | . . . Part Schematics Acquired 2 | . 2 . Parts Built . | . . . Authchips . | . . . Time . | . . . Total Part Build Rating . | . . . Parts Repaired . | . . . Time . | . . . Parts Recycled . | . . . Recycled Matter . | . . . Retrieved Matter . | . . . Retrieved Components 10 | . 10 . Parts Scanalyzed . | . . . Part Schematics Acquired . | . . . Parts Damaged . | . . . Bothacking | -11 -10 -10 ------------ Run | Yrd Mat Min Used RIF Installer . | . . . Robots Hacked . | . . . Non-combat . | . . . Combat . | . . . Robot Hacks Applied . | . . . Relay Couplers Released . | . . . Fabnet Peak Effective % . | . . . Robots Rewired . | . . . Allies Hacked . | . . . Hacks Repelled . | . . . Allies | -11 -10 -10 -------- Run | Yrd Mat Min Total Allies . | . . . Largest Group . | . . . Highest-Rated Group . | . . . Highest-Rated Ally . | . . . Total Orders . | . . . Ally Attacks . | . . . Total Damage . | . . . Kills . | . . . Allies Corrupted . | . . . Allies Melted . | . . . Intel | -11 -10 -10 ------- Run | Yrd Mat Min Robot Analysis Total 2 | . 2 . Derelict Logs Recovered . | . . . Drone Launches . | . . . Drone Recoveries . | . . . Exploration | -11 -10 -10 ------------- Run | Yrd Mat Min Turns Passed 1827 | 5 1380 442 Spaces Moved 936 | 3 686 247 Core . | . . . Treads . | . . . Legs . | . . . Wheels 936 | 3 686 247 Hover . | . . . Flight . | . . . Fastest Speed 95 | 95 95 175 Average Speed 172 | 95 171 175 Slowest Speed 200 | 95 200 175 Overloaded Moves . | . . . Propulsion Burnouts . | . . . Robots Hopped . | . . . Cave-ins Triggered . | . . . Exploration Rate (%) 48 | 2 96 48 Regions Visited 2 Branch Regions 1 Pre-discovered Areas 2 | . 1 1 Known Exits Taken . | . . . Unknown Exits Taken 2 | 1 1 . Scrap Searched . | . . . Spaces Dug . | . . . Terrain Destroyed 9 | . . 9 Melee . | . . . Projectile . | . . . AOE 9 | . . 9 Terrain Rammed . | . . . Walls Destroyed . | . . . Machines Disabled . | . . . Actions | -11 -10 -10 --------- Run | Yrd Mat Min Total 1047 | 4 791 252 Wait 21 | . 21 . Move 934 | 2 685 247 Hop . | . . . Pick Up 18 | . 16 2 Fast Attach 2 | . 2 . Attach 2 | . 2 . Detach . | . . . Swap 8 | 2 6 . Drop 2 | . 2 . Fire 60 | . 57 3 Melee . | . . . Ram . | . . . Kick . | . . . Crush . | . . . Escape Stasis . | . . . Rewire . | . . . Trap . | . . . Miscellaneous . | . . . Route ------- -11/Scrapyard -10/Materials (discovered 4 exits: [*Mat x3] / [*Min]) -10/Mines (discovered 1 exit: [*Mat]) History --------- Turn | Location | Event 4 | -11/Scrapyard | Discovered new exit (range 3) 6 | -11/Scrapyard | Entered Materials 308 | -10/Materials | Build established: Mutant 338 | -10/Materials | Discovered new exit (range 12) 491 | -10/Materials | Discovered new exit (range 5) 633 | -10/Materials | Discovered new exit (range 12) 865 | -10/Materials | Discovered new exit (range 13) 906 | -10/Materials | Derelicts attacked the area 936 | -10/Materials | Core integrity fell below 50% 1386 | -10/Materials | Entered Mines 1406 | -10/Mines | Met a Derelict bent on vengeance 1542 | -10/Mines | Learned location of Storage (-9) 1593 | -10/Mines | Discovered new exit (range 13) 1795 | -10/Mines | Assembled infested the area 1825 | -10/Mines | Core integrity fell below 20% 1828 | -10/Mines | Destroyed by D-53 Grenadier with Mini Grenade Launcher Last Messages --------------- 01593_ EXIT=FOUND 01686_ K-01 Serf collects debris. 01795_ ALERT: Infestation in the mines, dispatching Demolisher response squad. 01802_ K-01 Serf cleans the Plasma Injector. 01816_ C-30 ARC bursts open, deploying its payload. 01816_ D-53 Grenadier unfolds itself. 01817_ K-01 Serf cleans the Plasma Injector. 01820_ Imp. Heat Sink destroyed. 01820_ U-05 Engineer destroyed. 01821_ Plasma Injector explodes. 01821_ Destroyed Wheel. 01821_ Destroyed Lgt. Deuterium Engine. 01821_ Lgt. Treads destroyed. 01826_ Com. Wheel destroyed. 01827_ The unstable cave ceiling collapses. 01827_ Ion Engine destroyed. 01827_ K-01 Serf destroyed. Map ----- +----------------------------------------------------+ | ?????????????????????????????????????????????????? | | ?????????????????????????????????????????????????? | | ?????????????????????????????????????????????????? | | ?????????????????????????????????????????????????? | | ?????????????????????????????????????????????????? | | ?????????????????????????????????????????????????? | | ?????????????????????????????????????????????????? | | ?????????????????????????????????????????????????? | | ?????????????????????????????????????????????????? | | ?????????????????????????????????????????????????? | | ?????????????????????????????????????????????????? | | ?????????????????????????????????????????????????? | | ??????????????????????????????????# ???????????? | | ??????????????????????????????????# ?????????? | | ??????????????????????????????????# ???????? | | ?????????????????????????????????? ??????? | | ?????????????????????????????????? ??????? | | ??????????????????????????????????# ????? | | ????????????????????###??????????## ?????? | | ????????????????????# ?????????## ??????? | | ????????????????????# #######??## #??????? | | ????????????????????# # #### """" ##?????? | | ???????###?????????## ## """" #?????? | | ??????## #???????##;r """" #?????? | | ?????## #??????# % #??????? | | ?????# ##????# @ #???????? | | ?????# #????#d ##???????? | | ?????# ###### d ##???????? | | ?????## #???????? | | ??????# ## #### ##??????# | | ?# #?# #??#;; ;; ######## | | ?# #??# #??### ## | | ?## ######???# #????#% ## ### | | ????????###### #????# # ##?## ## ## | | ????????# #????### ## #???# ### ## | | ????????# ######??????# ###### ##???# ####?# ## | | ???????## #???????????# #????####???# ##????# ## | | ?????### #???????????# ###?????????#####?##### ## | | ????## #???????????# ################# # | | ???## ##??????####?## | | ??## #??????## ##?# ################# | | ?## #??????# ### #???????????????### | | | ## ##????## ## #?????????????????### | | #??### < # #???????????????????## | | ### #?## # #???###????####??###?# | | ##?## #### # #??## ##??## ### #### | | ###???##### ## #?## #??# #??# | | ????????## ## ## ### #### #??? | | ????????# #### ## ## ## #??? | | ????????# #??## ##?? | +----------------------------------------------------+ Best States ------------- Heat Dissipation 39 Energy Generation 10 Energy Capacity 250 Matter Stores 300 Matter Capacity 300 Sight Range 16 Robot Scan Range 14 Terrain Scan Density 10 Evasion (%) 41 Recoil Reduction 1 Item Schematics ----------------- Lrg. Storage Unit | -10/Materials | Hacked Med. Storage Unit | -10/Materials | Hacked Robot Schematics ------------------ None Fabricated ------------ Nothing Alien Tech Used ----------------- None Achievements -------------- None Challenges ------------ None Game ------ Seed GammaDecoySabre Manual? 0 Play Time 00:10:10 Cumulative 100.7 hours Start 2024.06.11 @ 18:15:52 End 2024.06.11 @ 18:25:05 Sessions 1 Manual Loads 0 Difficulty Rogue Special Mode None Game No. 52 Rogue 52 Adventurer 0 Explorer 0 Win Type - Total 4 Types 3/0/0/1/0/0/0/0/0 Lore% 59 Gallery% 60 Achievement% 54 Wizard Run 0 Options --------- Layout 2 ASCII 0 Keyboard 0 Movement Numpad Keybinds 0 Fullscreen 2 Font 24/Smallcaps Map View 50x44 Zoom Use 0% Tactical HUD 1 Map Filters NONE Filters NONE Steam 1 RUN: 090326a5-15f5-43c8-b6a7-5c9fb151634f